bitfinex/quotes_BTCUSD_20241101
["timestamp","ask_amount","ask_price","bid_price","bid_amount"]
[1730432486672,0.17894454,69495.0,69494.0,0.002]
[1730432487140,0.03504954,69495.0,69494.0,0.002]
[1730432487362,0.03504954,69495.0,69494.0,0.48645225]
[1730432487363,0.01348059,69495.0,69494.0,0.48645225]
[1730432487580,0.01348059,69495.0,69494.0,0.63631337]
[1730432487810,0.01348059,69495.0,69494.0,0.63994804]
[1730432488043,0.01348059,69495.0,69494.0,0.48808692]
[1730432488269,0.01348059,69495.0,69494.0,0.63994804]
[1730432488512,0.01348059,69495.0,69494.0,0.73411698]
[1730432489389,0.01348059,69495.0,69494.0,0.73211698]
[1730432490118,0.000822,69497.0,69496.0,0.253093]
[1730432490342,0.0142944,69497.0,69496.0,0.49432552]
[1730432490552,0.0142944,69497.0,69496.0,0.62320687]
[1730432490785,0.0142944,69497.0,69496.0,0.62684154]
[1730432493500,0.01429482,69497.0,69496.0,0.62684154]
[1730432495125,0.01329482,69497.0,69496.0,0.62884154]
[1730432495532,0.04310508,69511.0,69510.0,0.145864]
[1730432495738,0.04310508,69511.0,69510.0,0.3928984]
[1730432496089,0.04310508,69511.0,69510.0,0.25257256]
[1730432496429,0.05656647,69511.0,69510.0,0.39643656]
[1730432496629,0.08887383,69511.0,69510.0,0.39643656]
[1730432496833,0.0673356,69511.0,69510.0,0.39643656]
[1730432497042,0.14385,69517.0,69516.0,0.002]
[1730432497266,0.17884363,69517.0,69516.0,0.002]
[1730432497493,0.18961274,69517.0,69516.0,0.00553816]
[1730432499011,0.18961274,69517.0,69516.0,0.002]
[1730432504335,0.14385,69517.0,69516.0,0.002]
[1730432504558,0.1895441,69517.0,69516.0,0.002]
[1730432506554,0.1903661,69517.0,69516.0,0.002]
[1730432507624,0.2037987,69517.0,69516.0,0.002]
[1730432508048,0.20379186,69517.0,69516.0,0.002]
[1730432508433,0.29993075,69517.0,69516.0,0.002]
[1730432509961,0.143876,69504.0,69503.0,0.002]
[1730432510230,0.25345236,69504.0,69503.0,0.002]
[1730432510441,0.28838789,69504.0,69503.0,0.00548027]
[1730432510655,0.28838789,69504.0,69503.0,0.002]
[1730432511096,0.29913457,69504.0,69503.0,0.002]
[1730432511785,0.29913129,69504.0,69503.0,0.002]
[1730432512674,0.35281954,69504.0,69503.0,0.002]
[1730432514702,0.35281954,69504.0,69486.0,0.001626]
[1730432514703,0.143895,69495.0,69486.0,0.001626]
[1730432514920,0.35283854,69495.0,69488.0,0.002]
[1730432515153,0.35283854,69495.0,69486.0,0.003626]
[1730432515358,0.34209186,69495.0,69486.0,0.003626]
[1730432515580,0.3394045,69495.0,69486.0,0.001626]
[1730432515789,0.3394045,69495.0,69486.0,0.003626]
[1730432516436,0.3394045,69495.0,69486.0,0.001626]
[1730432516906,0.3394045,69495.0,69486.0,0.003626]
[1730432517560,0.3394045,69495.0,69486.0,0.001626]
[1730432517775,0.3394045,69495.0,69486.0,0.003626]
[1730432517975,0.3394045,69495.0,69486.0,0.001626]
[1730432518594,0.31790901,69495.0,69486.0,0.001626]
[1730432519018,0.31790258,69495.0,69486.0,0.001626]
[1730432519459,0.32864255,69495.0,69486.0,0.001626]
[1730432520724,0.31789523,69495.0,69486.0,0.001626]
[1730432521803,0.33615155,69495.0,69486.0,0.001626]
[1730432522019,0.32541097,69495.0,69486.0,0.001626]
[1730432522688,0.30392953,69495.0,69486.0,0.001626]
[1730432523753,0.30392953,69495.0,69494.0,0.003644]
[1730432525234,0.29050363,69495.0,69494.0,0.003644]
[1730432525438,0.3039315,69495.0,69494.0,0.003644]
[1730432525877,0.31467459,69495.0,69494.0,0.001644]
[1730432527029,0.3039315,69495.0,69494.0,0.001644]
[1730432527669,0.33882566,69495.0,69494.0,0.001644]
[1730432527844,0.34956244,69495.0,69494.0,0.001644]
[1730432528712,0.32808904,69495.0,69494.0,0.001644]
[1730432528958,0.31735226,69495.0,69494.0,0.001644]
[1730432529181,0.31733361,69495.0,69494.0,0.001644]
[1730432529412,0.02682998,69495.0,69494.0,0.001644]
[1730432529625,0.02682998,69495.0,69494.0,0.02627105]
[1730432529845,0.17072498,69495.0,69494.0,0.02627105]
[1730432530059,0.17072498,69495.0,69494.0,0.0221184]
[1730432530266,0.32055699,69495.0,69494.0,0.0221184]
[1730432530468,0.32055699,69495.0,69494.0,0.02627105]
[1730432530877,0.35274588,69495.0,69494.0,0.0221184]
[1730432531734,0.33128662,69495.0,69494.0,0.0221184]
[1730432531954,0.33128662,69495.0,69494.0,0.02627105]
[1730432532413,0.32055998,69495.0,69494.0,0.02427105]
[1730432532636,0.33129436,69495.0,69494.0,0.02427105]
[1730432532846,0.3527663,69495.0,69494.0,0.02427105]
[1730432533259,0.35276856,69495.0,69494.0,0.02627105]
[1730432533486,0.35276856,69495.0,69494.0,0.0221184]
[1730432533685,0.35276856,69495.0,69494.0,0.02627105]
[1730432533890,0.32055998,69495.0,69494.0,0.02627105]
[1730432534562,0.26692682,69495.0,69494.0,0.02627105]
[1730432535484,0.17072797,69495.0,69494.0,0.02627105]
[1730432536126,0.143895,69495.0,69494.0,0.02627105]
[1730432536338,0.1707537,69495.0,69494.0,0.02627105]
[1730432536765,0.17075568,69495.0,69494.0,0.02627105]
[1730432536977,0.02686068,69495.0,69494.0,0.02427105]
[1730432537188,0.02686068,69495.0,69494.0,0.02627105]
[1730432538048,0.17075568,69495.0,69494.0,0.02627105]
[1730432538442,0.17075568,69495.0,69494.0,0.02427105]
[1730432538694,0.15732435,69495.0,69494.0,0.02627105]
[1730432540994,0.15814635,69495.0,69494.0,0.02627105]
[1730432541428,0.01425135,69495.0,69494.0,0.02427105]
[1730432541640,0.01425135,69495.0,69494.0,0.02627105]
[1730432542508,0.15814635,69495.0,69494.0,0.02427105]
[1730432543330,0.15817145,69495.0,69494.0,0.02427105]
[1730432544243,0.15817145,69495.0,69494.0,0.02627105]
[1730432544461,0.15817145,69495.0,69494.0,0.02427105]
[1730432545317,0.15817145,69495.0,69494.0,0.02627105]
[1730432545732,0.15817145,69495.0,69494.0,0.00779665]
[1730432545941,0.15817145,69495.0,69494.0,0.00579665]
[1730432546404,0.2543703,69495.0,69494.0,0.00579665]
[1730432546638,0.2543703,69495.0,69494.0,0.001644]
[1730432546639,0.36402264,69495.0,69494.0,0.001644]
[1730432546855,0.38554667,69495.0,69494.0,0.001644]
[1730432547050,0.38554568,69495.0,69494.0,0.001644]
[1730432547285,0.39630768,69495.0,69494.0,0.001644]
[1730432547720,0.30010883,69495.0,69494.0,0.001644]
[1730432549475,0.20390998,69495.0,69494.0,0.001644]
[1730432550177,0.8598796,69495.0,69494.0,0.001644]
[1730432550389,0.77324618,69495.0,69494.0,0.001644]
[1730432550606,0.70876615,69495.0,69494.0,0.001644]
[1730432550845,0.79475031,69495.0,69494.0,0.001644]
[1730432551063,0.7248131,69495.0,69494.0,0.001644]
[1730432551277,0.67065728,69495.0,69494.0,0.001644]
[1730432551494,0.61461211,69495.0,69494.0,0.001644]
[1730432552601,0.66832833,69495.0,69494.0,0.001644]
[1730432554308,0.75428562,69495.0,69494.0,0.001644]
[1730432554494,0.77581679,69495.0,69494.0,0.001644]
[1730432554964,0.61873522,69495.0,69494.0,0.001644]
[1730432555438,0.72623258,69495.0,69494.0,0.001644]
[1730432555653,0.61873522,69495.0,69494.0,0.001644]
[1730432557994,0.61872938,69495.0,69494.0,0.001644]
[1730432561897,0.61872656,69495.0,69494.0,0.001644]
[1730432562897,0.64022911,69495.0,69494.0,0.001644]
[1730432563934,0.61872656,69495.0,69494.0,0.001644]
[1730432564616,0.63216553,69495.0,69494.0,0.001644]
[1730432565362,0.63216638,69495.0,69494.0,0.001644]
[1730432569032,0.63216926,69495.0,69494.0,0.001644]
[1730432573482,0.73970465,69495.0,69494.0,0.001644]
[1730432574438,0.63216885,69495.0,69494.0,0.001644]
[1730432574643,0.67471454,69495.0,69494.0,0.001644]
[1730432575520,0.80240159,69495.0,69486.0,0.001626]
[1730432575752,0.33637176,69487.0,69486.0,0.001626]
[1730432575952,0.62092378,69487.0,69486.0,0.001626]
[1730432576602,0.5246934,69487.0,69486.0,0.001626]
[1730432576839,0.62092378,69487.0,69486.0,0.001626]
[1730432577080,0.5246934,69487.0,69486.0,0.001626]
[1730432577301,0.25358235,69487.0,69486.0,0.001626]
[1730432577513,0.36106384,69487.0,69486.0,0.001626]
[1730432578630,0.36105856,69487.0,69486.0,0.001626]
[1730432579059,0.25358905,69487.0,69486.0,0.001626]
[1730432579719,0.24014138,69487.0,69486.0,0.001626]
[1730432579937,0.25358769,69487.0,69486.0,0.001626]
[1730432580626,0.34981807,69487.0,69486.0,0.001626]
[1730432580840,0.44981807,69487.0,69486.0,0.001626]
[1730432582190,0.80831828,69487.0,69486.0,0.001626]
[1730432582414,0.8083152,69487.0,69486.0,0.001626]
[1730432582630,0.80831241,69487.0,69486.0,0.001626]
[1730432582844,0.79487197,69487.0,69486.0,0.001626]
[1730432583059,0.80831232,69487.0,69486.0,0.001626]
[1730432583275,0.81331232,69487.0,69486.0,0.001626]
[1730432584128,0.79987197,69487.0,69486.0,0.001626]
[1730432584378,0.79987197,69487.0,69480.0,0.0185219]
[1730432584379,0.338924,69481.0,69480.0,0.0185219]
[1730432584585,0.68327726,69481.0,69480.0,0.0185219]
[1730432584819,0.76919532,69481.0,69480.0,0.0185219]
[1730432585901,0.53574007,69481.0,69480.0,0.0185219]
[1730432587639,0.54262201,69481.0,69480.0,0.0185219]
[1730432587849,0.62854007,69481.0,69480.0,0.0185219]
[1730432589384,0.76699532,69481.0,69480.0,0.0185219]
[1730432590317,0.67419532,69481.0,69480.0,0.0185219]
[1730432591378,0.33948242,69481.0,69480.0,0.0936219]
[1730432591590,0.31801778,69481.0,69480.0,0.0936219]
[1730432591823,0.25359163,69481.0,69480.0,0.0936219]
[1730432592034,0.29654134,69481.0,69480.0,0.0936219]
[1730432592452,0.25359163,69481.0,69480.0,0.0936219]
[1730432592902,0.15736125,69481.0,69480.0,0.0936219]
[1730432593125,0.15736125,69481.0,69480.0,0.1915219]
[1730432593310,0.25359163,69481.0,69480.0,0.1915219]
[1730432593702,0.25359163,69481.0,69480.0,0.0936219]
[1730432594674,0.25359163,69481.0,69480.0,0.0185219]
[1730432595050,0.2965462,69481.0,69480.0,0.0185219]
[1730432595689,0.24069163,69481.0,69480.0,0.0185219]
[1730432598957,0.24069163,69481.0,69480.0,0.0201659]
[1730432600209,0.24069723,69481.0,69480.0,0.0201659]
[1730432603708,0.24070746,69481.0,69480.0,0.0201659]
[1730432605755,0.28370906,69481.0,69480.0,0.0201659]
[1730432606349,0.33693784,69481.0,69480.0,0.0201659]
[1730432606548,0.65829629,69481.0,69480.0,0.0201659]
[1730432606777,0.65831277,69481.0,69480.0,0.0201659]
[1730432606983,0.57229309,69481.0,69480.0,0.0201659]
[1730432607237,0.6797971,69481.0,69480.0,0.0201659]
[1730432607461,0.67980417,69481.0,69480.0,0.0201659]
[1730432608558,0.58290417,69481.0,69480.0,0.0201659]
[1730432608980,0.47540016,69481.0,69480.0,0.0201659]
[1730432609180,0.37916978,69481.0,69480.0,0.0201659]
[1730432609309,0.47540016,69481.0,69480.0,0.0201659]
[1730432609522,0.62550509,69481.0,69480.0,0.0201659]
[1730432610526,0.62714909,69481.0,69480.0,0.0201659]
[1730432610755,0.61368894,69481.0,69480.0,0.0201659]
[1730432610972,0.62715096,69481.0,69480.0,0.0201659]
[1730432613475,0.51964695,69481.0,69480.0,0.0201659]
[1730432614405,0.51964815,69481.0,69480.0,0.0201659]
[1730432614852,0.51964816,69481.0,69480.0,0.0201659]
[1730432621487,0.50618493,69481.0,69480.0,0.0201659]
[1730432621677,0.51964885,69481.0,69480.0,0.0201659]
[1730432624943,0.18873284,69481.0,69480.0,0.1032659]
[1730432625167,0.28496301,69481.0,69480.0,0.1032659]
[1730432625364,0.28496301,69481.0,69480.0,0.0201659]
[1730432625585,0.29842695,69481.0,69480.0,0.0201659]
[1730432625788,0.28496324,69481.0,69480.0,0.0201659]
[1730432628822,0.28496445,69481.0,69480.0,0.0201659]
[1730432632527,0.2849707,69481.0,69480.0,0.0201659]
[1730432636155,0.28497614,69481.0,69480.0,0.0201659]
[1730432636576,0.41423789,69481.0,69480.0,0.0201659]
[1730432637645,0.55269314,69481.0,69480.0,0.0201659]
[1730432638723,0.53921145,69481.0,69480.0,0.0201659]
[1730432638948,0.55269572,69481.0,69480.0,0.0201659]
[1730432639821,0.53921145,69481.0,69480.0,0.0201659]
[1730432640033,0.55269608,69481.0,69480.0,0.0201659]
[1730432649520,0.53931814,69481.0,69480.0,0.0201659]
[1730432649719,0.42343829,69481.0,69480.0,0.0201659]
[1730432651753,0.80276867,69481.0,69480.0,0.0201659]
[1730432651955,0.24018338,69467.0,69466.0,0.002]
[1730432652286,0.25366712,69467.0,69466.0,0.002]
[1730432652814,0.33989987,69467.0,69466.0,0.002]
[1730432653019,0.32641613,69467.0,69466.0,0.002]
[1730432653242,0.25365267,69467.0,69466.0,0.002]
[1730432653676,0.22207177,69467.0,69466.0,0.002]
[1730432655195,0.15742229,69467.0,69466.0,0.09754306]
[1730432655403,0.01346929,69467.0,69466.0,0.17534306]
[1730432655631,0.05656349,69467.0,69466.0,0.17534306]
[1730432656250,0.20051649,69467.0,69466.0,0.17534306]
[1730432656660,0.20051217,69467.0,69466.0,0.17534306]
[1730432656920,0.20051217,69467.0,69466.0,0.1704]
[1730432657110,0.20051217,69467.0,69466.0,0.17536405]
[1730432657733,0.20051217,69467.0,69466.0,0.1704]
[1730432658604,0.20051217,69467.0,69466.0,0.17536405]
[1730432658990,0.15741797,69467.0,69466.0,0.17536405]
[1730432659657,0.01346497,69467.0,69466.0,0.17536405]
[1730432659862,0.15741797,69467.0,69466.0,0.17536405]
[1730432660066,0.15741797,69467.0,69466.0,0.1704]
[1730432660275,0.15741797,69467.0,69466.0,0.17536405]
[1730432660695,0.20050892,69467.0,69466.0,0.17536405]
[1730432661106,0.20050796,69467.0,69466.0,0.1704]
[1730432661309,0.20050796,69467.0,69466.0,0.08476405]
[1730432661730,0.20050796,69467.0,69466.0,0.0798]
[1730432661951,0.22205295,69467.0,69466.0,0.002]
[1730432664699,0.15741797,69467.0,69466.0,0.002]
[1730432664904,0.15741797,69467.0,69466.0,0.00613671]
[1730432665509,0.15741797,69467.0,69466.0,0.002]
[1730432666940,0.15741797,69467.0,69466.0,0.00617042]
[1730432667142,0.15741797,69467.0,69466.0,0.002822]
[1730432667576,0.20048398,69467.0,69466.0,0.002822]
[1730432670269,0.2004839,69467.0,69466.0,0.002822]
[1730432670445,0.2004839,69467.0,69466.0,0.00699242]
[1730432670651,0.0565309,69467.0,69466.0,0.19631446]
[1730432670850,0.0565309,69467.0,69466.0,0.17779242]
[1730432671051,0.0565309,69467.0,69466.0,0.32174742]
[1730432672081,0.01345886,69467.0,69466.0,0.32174742]
[1730432672717,0.01345886,69467.0,69466.0,0.17779242]
[1730432674191,0.00745886,69467.0,69466.0,0.23892326]
[1730432677469,0.00745886,69467.0,69466.0,0.17779242]
[1730432679144,0.1869982,69469.0,69466.0,0.17779242]
[1730432680033,0.18700293,69469.0,69466.0,0.17779242]
[1730432680217,0.18700293,69469.0,69468.0,0.002]
[1730432680420,0.04305393,69469.0,69468.0,0.002]
[1730432680789,0.18700293,69469.0,69468.0,0.002]
[1730432680948,0.18700111,69469.0,69468.0,0.002]
[1730432681133,0.18700111,69469.0,69468.0,0.00614142]
[1730432682630,0.04305211,69469.0,69468.0,0.00614142]
[1730432682821,0.04305211,69469.0,69468.0,0.002]
[1730432683040,0.04305211,69469.0,69468.0,0.00614142]
[1730432683245,0.04305211,69469.0,69468.0,0.002]
[1730432683447,0.04305211,69469.0,69468.0,0.15009242]
[1730432683681,0.04305211,69469.0,69468.0,0.145951]
[1730432683890,0.04305211,69469.0,69468.0,0.15009242]
[1730432684109,0.06457817,69471.0,69469.0,0.145949]
[1730432684328,0.06457817,69471.0,69470.0,0.002]
[1730432684510,0.06457817,69471.0,69470.0,0.00654918]
[1730432684771,0.04305661,69471.0,69470.0,0.00654918]
[1730432685181,0.04305661,69471.0,69470.0,0.07179928]
[1730432686136,0.05651626,69471.0,69470.0,0.07179928]
[1730432687249,0.01345965,69471.0,69470.0,0.07179928]
[1730432688281,0.05651626,69471.0,69470.0,0.07179928]
[1730432689126,0.01345965,69471.0,69470.0,0.21574628]
[1730432689562,0.01345965,69471.0,69470.0,0.38424628]
[1730432690208,0.01345426,69471.0,69470.0,0.38424628]
[1730432691062,0.01509826,69471.0,69470.0,0.38424628]
[1730432693848,0.001644,69471.0,69470.0,0.38424628]
[1730432694043,0.0150968,69471.0,69470.0,0.38424628]
[1730432695598,0.0150968,69471.0,69470.0,0.31899618]
[1730432696440,0.02585898,69471.0,69470.0,0.31899618]
[1730432697152,0.03931165,69471.0,69470.0,0.31899618]
[1730432697390,0.06083617,69471.0,69470.0,0.31899618]
[1730432697600,0.06083645,69471.0,69470.0,0.31899618]
[1730432698136,0.06083645,69471.0,69470.0,0.17504918]
[1730432698956,0.01240626,69471.0,69470.0,0.17504918]
[1730432699154,0.06084253,69471.0,69470.0,0.17504918]
[1730432699569,0.06084253,69471.0,69470.0,0.00654918]
[1730432700253,0.30101691,69471.0,69470.0,0.00654918]
[1730432700481,0.06084253,69471.0,69470.0,0.00654918]
[1730432700704,0.10388765,69471.0,69470.0,0.002]
[1730432700926,0.06084749,69471.0,69470.0,0.00650554]
[1730432701137,0.06084749,69471.0,69470.0,0.002]
[1730432701353,0.06084811,69471.0,69470.0,0.0506958]
[1730432701559,0.07430435,69471.0,69470.0,0.0506958]
[1730432701783,0.06084901,69471.0,69470.0,0.0506958]
[1730432703519,0.01240827,69471.0,69470.0,0.00653125]
[1730432703793,0.06086297,69471.0,69470.0,0.00653125]
[1730432704685,0.06086297,69471.0,69470.0,0.32927825]
[1730432704920,0.06086297,69471.0,69470.0,0.4977335]
[1730432705397,0.001644,69480.0,69479.0,0.150928]
[1730432705610,0.001644,69480.0,69479.0,0.51041363]
[1730432705834,0.21933976,69481.0,69480.0,0.033]
[1730432705835,0.001644,69481.0,69480.0,0.033]
[1730432706049,0.001644,69481.0,69480.0,0.49048125]
[1730432706280,0.000822,69494.0,69492.0,0.145901]
[1730432706532,0.000822,69494.0,69493.0,0.045872]
[1730432706974,0.000822,69494.0,69493.0,0.05034563]
[1730432708070,0.24094938,69494.0,69493.0,0.05034563]
[1730432708286,0.24094938,69494.0,69493.0,0.00647363]
[1730432708725,0.24094938,69494.0,69493.0,0.002]
[1730432708925,0.24094938,69494.0,69493.0,0.0073623]
[1730432709044,0.24094938,69494.0,69493.0,0.002]
[1730432709243,0.24094938,69494.0,69493.0,0.00736344]
[1730432709447,0.24094938,69494.0,69493.0,0.002]
[1730432709653,0.24094938,69494.0,69493.0,0.00736344]
[1730432710106,0.144719,69494.0,69493.0,0.00736344]
[1730432710952,0.000822,69494.0,69493.0,0.02249068]
[1730432713103,0.000822,69494.0,69493.0,0.00536344]
[1730432713104,0.36241476,69494.0,69493.0,0.00536344]
[1730432713303,0.59497001,69494.0,69493.0,0.00536344]
[1730432713554,0.143926,69480.0,69479.0,0.002]
[1730432713999,0.143928,69479.0,69478.0,0.002]
[1730432717447,0.17073828,69479.0,69478.0,0.002]
[1730432717656,0.17073829,69479.0,69478.0,0.002]
[1730432718292,0.14393,69478.0,69472.0,0.143942]
[1730432718495,0.02681029,69477.0,69473.0,0.07317398]
[1730432718690,0.02681029,69476.0,69473.0,0.07317398]
[1730432718894,0.02681029,69475.0,69472.0,0.143942]
[1730432719114,0.01340514,69474.0,69472.0,0.143942]
[1730432719342,0.14393,69478.0,69472.0,0.168942]
[1730432719343,0.01340514,69473.0,69472.0,0.168942]
[1730432719753,0.0134079,69477.0,69476.0,0.002]
[1730432719963,0.14393,69478.0,69477.0,0.002]
[1730432720177,0.15733791,69478.0,69477.0,0.002]
[1730432720393,0.01340791,69478.0,69477.0,0.002]
[1730432720614,0.16332712,69478.0,69471.0,0.002]
[1730432720808,0.21769576,69480.0,69471.0,0.002]
[1730432720809,0.29386121,69472.0,69471.0,0.002]
[1730432721083,0.30726912,69472.0,69471.0,0.002]
[1730432721284,0.32067655,69472.0,69471.0,0.002]
[1730432721734,0.15734965,69472.0,69471.0,0.002]
[1730432722824,0.16332686,69472.0,69470.0,0.002]
[1730432723044,0.15735165,69471.0,69470.0,0.002]
[1730432724363,0.15735078,69471.0,69470.0,0.002]
[1730432724795,0.15735039,69471.0,69470.0,0.002]
[1730432726274,0.15735039,69471.0,69470.0,0.002822]
[1730432727802,0.15734891,69471.0,69470.0,0.002822]
[1730432737637,0.23854891,69471.0,69470.0,0.002822]
[1730432738304,0.225144,69471.0,69470.0,0.002822]
[1730432738520,0.33482907,69471.0,69470.0,0.002822]
[1730432740644,0.33483459,69471.0,69470.0,0.002822]
[1730432741032,0.43111841,69471.0,69470.0,0.002822]
[1730432741279,0.33483459,69471.0,69470.0,0.002822]
[1730432746066,0.34826814,69471.0,69470.0,0.002822]
[1730432747036,0.44455196,69471.0,69470.0,0.000822]
[1730432747261,0.34826814,69471.0,69470.0,0.002822]
[1730432748747,0.26706814,69471.0,69470.0,0.002822]
[1730432749124,0.25366137,69471.0,69470.0,0.002822]
[1730432749409,0.26710266,69471.0,69470.0,0.002822]
[1730432753018,0.25366911,69471.0,69470.0,0.002822]
[1730432753220,0.25368133,69471.0,69470.0,0.002822]
[1730432754470,0.25368133,69471.0,69470.0,0.000822]
[1730432754471,0.56766091,69471.0,69470.0,0.000822]
[1730432754791,0.45511748,69471.0,69470.0,0.000822]
[1730432754989,0.39261905,69471.0,69470.0,0.000822]
[1730432755408,0.43550706,69471.0,69470.0,0.000822]
[1730432756361,0.39261004,69471.0,69470.0,0.000822]
[1730432757224,0.40605373,69471.0,69470.0,0.000822]
[1730432757460,0.47038574,69471.0,69470.0,0.000822]
[1730432758403,0.49182975,69471.0,69470.0,0.000822]
[1730432759219,0.40605373,69471.0,69470.0,0.000822]
[1730432759383,0.37916554,69471.0,69470.0,0.000822]
[1730432760774,0.39261057,69471.0,69470.0,0.000822]
[1730432761234,0.50000126,69471.0,69470.0,0.000822]
[1730432761450,0.39261057,69471.0,69470.0,0.000822]
[1730432761862,0.37916554,69471.0,69470.0,0.000822]
[1730432762265,0.48655623,69471.0,69470.0,0.000822]
[1730432763848,0.51344857,69471.0,69470.0,0.000822]
[1730432764050,0.5000024,69471.0,69470.0,0.000822]
[1730432764249,0.70536696,69471.0,69470.0,0.000822]
[1730432764508,0.69192079,69471.0,69470.0,0.000822]
[1730432764866,0.69192079,69471.0,69465.0,0.001628]
[1730432764867,0.1969,69467.0,69465.0,0.001628]
[1730432765033,0.81037699,69467.0,69465.0,0.001628]
[1730432765367,0.143976,69456.0,69455.0,0.21969576]
[1730432765683,0.143978,69455.0,69454.0,0.00415922]
[1730432765835,0.1574252,69455.0,69454.0,0.00415922]
[1730432766034,0.1574252,69455.0,69454.0,0.00215922]
[1730432766441,0.1574252,69455.0,69454.0,0.00415922]
[1730432766643,0.1708668,69455.0,69454.0,0.00415922]
[1730432767427,0.143978,69455.0,69454.0,0.00415922]
[1730432767643,0.17086204,69455.0,69454.0,0.00215922]
[1730432768016,0.15742002,69455.0,69454.0,0.00215922]
[1730432769134,0.15742002,69455.0,69454.0,0.00415922]
[1730432769569,0.15742002,69455.0,69454.0,0.08465922]
[1730432769801,0.01344202,69455.0,69454.0,0.08465922]
[1730432770019,0.15742002,69455.0,69454.0,0.17968397]
[1730432771335,0.15742002,69455.0,69454.0,0.08938397]
[1730432771575,0.17085171,69455.0,69454.0,0.08465922]
[1730432771782,0.17085171,69455.0,69454.0,0.08938397]
[1730432771987,0.17085171,69455.0,69454.0,0.00215922]
[1730432772630,0.17085171,69455.0,69454.0,0.00498122]
[1730432773079,0.17085171,69455.0,69454.0,0.00298122]
[1730432774706,0.15740969,69455.0,69454.0,0.00498122]
[1730432774880,0.17085444,69455.0,69454.0,0.00298122]
[1730432776035,0.17085444,69455.0,69454.0,0.00498122]
[1730432776483,0.17085444,69455.0,69454.0,0.00298122]
[1730432777223,0.17085444,69455.0,69454.0,0.000822]
[1730432778524,0.15740959,69455.0,69454.0,0.000822]
[1730432778948,0.18427238,69455.0,69454.0,0.000822]
[1730432779173,0.18427238,69455.0,69454.0,0.002822]
[1730432779377,0.18427238,69455.0,69454.0,0.000822]
[1730432779997,0.26046335,69455.0,69454.0,0.000822]
[1730432780214,0.30344258,69455.0,69454.0,0.000822]
[1730432780626,0.49494258,69455.0,69454.0,0.000822]
[1730432781254,0.40344258,69455.0,69454.0,0.000822]
[1730432781496,0.76570242,69455.0,69454.0,0.000822]
[1730432781709,0.80832686,69455.0,69454.0,0.000822]
[1730432781917,0.24028582,69443.0,69435.0,9e-05]
[1730432782128,0.24028582,69443.0,69442.0,0.003628]
[1730432782333,0.25371613,69443.0,69442.0,0.001628]
[1730432782551,0.26714644,69443.0,69442.0,0.003628]
[1730432784534,0.26714644,69443.0,69442.0,0.001628]
[1730432784758,0.37724004,69443.0,69442.0,0.001628]
[1730432784967,0.38863024,69443.0,69442.0,0.001628]
[1730432785645,0.34028582,69443.0,69442.0,0.001628]
[1730432785849,0.37250448,69443.0,69442.0,0.003628]
[1730432786102,0.39935336,69443.0,69442.0,0.003628]
[1730432786739,0.28861381,69443.0,69442.0,0.003628]
[1730432788871,0.2671347,69443.0,69442.0,0.003628]
[1730432789507,0.25370819,69443.0,69442.0,0.003628]
[1730432789726,0.26713055,69443.0,69442.0,0.003628]
[1730432789940,0.17084678,69443.0,69442.0,0.003628]
[1730432790381,0.2671306,69443.0,69442.0,0.003628]
[1730432791488,0.17084678,69443.0,69442.0,0.003628]
[1730432791719,0.02684478,69443.0,69442.0,0.003628]
[1730432791942,0.02684478,69443.0,69442.0,0.00849422]
[1730432792871,0.17084678,69443.0,69442.0,0.00849422]
[1730432793760,0.17084678,69443.0,69442.0,0.003628]
[1730432793978,0.19232789,69443.0,69442.0,0.003628]
[1730432795766,0.19232789,69443.0,69442.0,0.001628]
[1730432795984,0.20306899,69443.0,69442.0,0.003628]
[1730432796642,0.35316908,69443.0,69442.0,0.003628]
[1730432796854,0.35317481,69443.0,69442.0,0.003628]
[1730432797704,0.37465806,69443.0,69442.0,0.003628]
[1730432800800,0.31826981,69443.0,69442.0,0.003628]
[1730432801019,0.34247424,69443.0,69442.0,0.003628]
[1730432801224,0.19237415,69443.0,69442.0,0.003628]
[1730432801859,0.1708754,69443.0,69442.0,0.003628]
[1730432803970,0.15744411,69443.0,69442.0,0.003628]
[1730432804179,0.34249369,69443.0,69442.0,0.003628]
[1730432806679,0.34249369,69443.0,69442.0,0.001628]
[1730432807155,0.43739369,69443.0,69442.0,0.001628]
[1730432807383,0.63911518,69437.0,69436.0,0.001628]
[1730432807594,1.01464755,69437.0,69436.0,0.001628]
[1730432807797,0.87201871,69437.0,69436.0,0.001628]
[1730432808034,0.90697992,69437.0,69436.0,0.001628]
[1730432808569,1.01437521,69437.0,69436.0,0.001628]
[1730432809421,0.86427512,69437.0,69436.0,0.001628]
[1730432809644,1.01437521,69437.0,69436.0,0.001628]
[1730432809851,0.86427512,69437.0,69436.0,0.001628]
[1730432810498,0.90697992,69437.0,69436.0,0.001628]
[1730432810777,1.01937521,69437.0,69436.0,0.001628]
[1730432810983,1.08851538,69437.0,69436.0,0.001628]
[1730432811186,0.149023,69433.0,69432.0,0.001628]
[1730432811426,0.58022363,69433.0,69432.0,0.001628]
[1730432811673,0.86661642,69433.0,69432.0,0.001628]
[1730432811870,0.86661478,69433.0,69432.0,0.001628]
[1730432812291,0.86661346,69433.0,69432.0,0.001628]
[1730432813990,0.84511492,69433.0,69432.0,0.001628]
[1730432814625,0.84011492,69433.0,69432.0,0.001628]
[1730432814745,0.80982133,69433.0,69432.0,0.001628]
[1730432814948,0.70256963,69433.0,69432.0,0.001628]
[1730432816828,0.50702304,69433.0,69432.0,0.001628]
[1730432817047,0.50702304,69433.0,69432.0,0.003628]
[1730432817267,0.46411438,69433.0,69432.0,0.003628]
[1730432817900,0.46411438,69433.0,69432.0,0.001628]
[1730432818710,0.46411438,69433.0,69432.0,0.003628]
[1730432818924,0.46409316,69433.0,69432.0,0.003628]
[1730432819356,0.4372412,69433.0,69432.0,0.003628]
[1730432819598,0.32095289,69433.0,69432.0,0.003628]
[1730432821057,0.1708528,69433.0,69432.0,0.003628]
[1730432822179,0.1574379,69433.0,69432.0,0.003628]
[1730432822389,0.17085842,69433.0,69432.0,0.00732575]
[1730432822611,0.17086122,69433.0,69432.0,0.003628]
[1730432823060,0.19233222,69433.0,69432.0,0.001628]
[1730432823266,0.19233222,69433.0,69432.0,0.003628]
[1730432824795,0.19233537,69433.0,69432.0,0.001628]
[1730432825396,0.17891311,69433.0,69432.0,0.001628]
[1730432825610,0.15744211,69433.0,69432.0,0.001628]
[1730432825827,0.144023,69433.0,69432.0,0.001628]
[1730432826262,0.19235014,69433.0,69432.0,0.001628]
[1730432826938,0.23531268,69433.0,69432.0,0.001628]